bitfinex/quotes_BTCUSD_20220120
["timestamp","ask_amount","ask_price","bid_price","bid_amount"]
[1642692963582,0.24814859,43211.0,43210.0,0.00129008]
[1642692963824,0.79814859,43211.0,43210.0,0.021]
[1642692964027,0.79814859,43211.0,43210.0,0.02141257]
[1642692964028,1.18596259,43211.0,43210.0,0.02141257]
[1642692964526,0.80970859,43211.0,43210.0,0.02141257]
[1642692964925,0.80970859,43211.0,43210.0,0.00041257]
[1642692965726,0.81570859,43211.0,43210.0,0.00041257]
[1642692965925,0.01756,43211.0,43210.0,0.00041257]
[1642692966827,0.81756,43211.0,43210.0,0.00041257]
[1642692967028,0.81156,43211.0,43210.0,0.00041257]
[1642692967231,0.348437,43211.0,43210.0,0.00041257]
[1642692967429,0.360007,43211.0,43210.0,0.00041257]
[1642692967687,1.62690701,43211.0,43210.0,0.00041257]
[1642692967879,2.00316101,43211.0,43210.0,0.00041257]
[1642692968080,1.694261,43211.0,43210.0,0.00041257]
[1642692968281,1.673261,43211.0,43210.0,0.00041257]
[1642692968479,0.374824,43211.0,43210.0,0.00041257]
[1642692968681,0.0102,43217.0,43210.0,0.70041257]
[1642692968879,0.00072808,43222.0,43211.0,0.4]
[1642692968880,0.5731941,43221.0,43211.0,0.4]
[1642692969083,0.00072808,43222.0,43218.0,0.22564374]
[1642692969279,0.376258,43221.0,43218.0,0.057879]
[1642692969477,0.00072808,43222.0,43219.0,0.00025785]
[1642692969677,0.385258,43221.0,43219.0,0.00025785]
[1642692970078,0.376248,43220.0,43219.0,0.00025785]
[1642692970280,0.00072833,43222.0,43219.0,0.00025785]
[1642692970479,0.376248,43221.0,43219.0,0.00025785]
[1642692970676,0.37625,43220.0,43219.0,0.00025785]
[1642692971323,0.00072834,43222.0,43219.0,0.21375247]
[1642692971728,0.00072834,43222.0,43220.0,0.00024066]
[1642692971926,0.10665318,43227.0,43221.0,0.95]
[1642692971927,0.09286152,43227.0,43221.0,0.95]
[1642692972127,0.68734645,43234.0,43222.0,0.10212734]
[1642692972324,0.00072835,43223.0,43222.0,1.10807228]
[1642692972530,0.00072835,43223.0,43222.0,1.93432577]
[1642692972727,0.3090547,43234.0,43223.0,0.95]
[1642692972928,0.68544825,43236.0,43225.0,0.815722]
[1642692973126,0.00291237,43238.0,43231.0,0.057866]
[1642692973330,0.66224029,43237.0,43231.0,0.047866]
[1642692973525,1.03639329,43237.0,43231.0,0.047866]
[1642692973726,0.376253,43237.0,43231.0,0.047866]
[1642692973926,0.0298,43238.0,43231.0,0.047866]
[1642692974328,0.434117,43237.0,43231.0,0.047866]
[1642692974525,0.534117,43237.0,43231.0,0.047866]
[1642692975205,0.8240415,43237.0,43231.0,0.047866]
[1642692975504,0.534117,43237.0,43231.0,0.047866]
[1642692975701,0.564117,43237.0,43231.0,0.047866]
[1642692975901,0.00071713,43236.0,43231.0,0.047866]
[1642692976102,0.100618,43235.0,43231.0,0.047866]
[1642692976901,0.58946671,43234.0,43231.0,0.047866]
[1642692977102,0.434122,43233.0,43231.0,0.047866]
[1642692977304,1.02358871,43233.0,43231.0,0.047866]
[1642692977502,0.433912,43233.0,43231.0,0.047866]
[1642692977706,0.484253,43233.0,43223.0,0.01072659]
[1642692977915,0.484253,43233.0,43220.0,0.173617]
[1642692977916,0.58904671,43229.0,43220.0,0.173617]
[1642692978107,0.422353,43228.0,43214.0,0.00021062]
[1642692978307,0.04595876,43228.0,43219.0,0.0011897]
[1642692978505,0.376253,43227.0,43219.0,0.0011897]
[1642692978706,0.3910284,43223.0,43219.0,0.0011897]
[1642692978935,2.66558128,43222.0,43219.0,0.0011897]
[1642692979135,2.76558128,43222.0,43219.0,0.0011897]
[1642692979335,2.76558128,43222.0,43217.0,0.20287595]
[1642692979536,2.76558128,43222.0,43219.0,0.0011896]
[1642692979740,2.77258128,43222.0,43219.0,0.0011896]
[1642692979943,2.77258128,43222.0,43220.0,0.11581976]
[1642692980340,0.657886,43221.0,43220.0,0.11581976]
[1642692980537,1.034139,43221.0,43220.0,0.11581976]
[1642692980737,1.32672479,43221.0,43220.0,0.11581976]
[1642692981040,1.034139,43221.0,43220.0,0.11581976]
[1642692981441,0.976253,43221.0,43220.0,0.11581976]
[1642692981838,0.985253,43221.0,43220.0,6.876e-05]
[1642692982338,0.985253,43221.0,43219.0,8.595e-05]
[1642692982598,0.750618,43220.0,43219.0,8.595e-05]
[1642692983698,0.758618,43220.0,43219.0,8.595e-05]
[1642692984300,0.758198,43220.0,43219.0,8.595e-05]
[1642692984899,0.108198,43220.0,43219.0,8.595e-05]
[1642692985199,0.057882,43223.0,43219.0,8.595e-05]
[1642692985399,0.376253,43222.0,43219.0,8.595e-05]
[1642692985606,0.30454484,43221.0,43219.0,8.595e-05]
[1642692985804,0.30454484,43221.0,43217.0,0.00118962]
[1642692985805,1.20004882,43218.0,43217.0,0.00118962]
[1642692986007,0.057905,43215.0,43210.0,0.00475932]
[1642692986202,1.64490296,43211.0,43210.0,0.00475932]
[1642692986434,1.68879245,43211.0,43207.0,0.00021062]
[1642692986646,1.68879245,43211.0,43206.0,0.0011]
[1642692986647,1.78879245,43211.0,43206.0,0.0011]
[1642692986834,0.51241248,43211.0,43208.0,0.0001891]
[1642692987235,0.10625971,43210.0,43208.0,0.0001891]
[1642692987434,1.426253,43209.0,43208.0,0.0001891]
[1642692987936,0.48251271,43209.0,43208.0,0.0001891]
[1642692988440,0.48241655,43209.0,43208.0,0.0001891]
[1642692989038,0.009,43210.0,43208.0,0.0001891]
[1642692989235,0.10623423,43209.0,43208.0,0.0001891]
[1642692989536,0.009,43210.0,43208.0,0.0001891]
[1642692989735,0.515,43209.0,43208.0,0.0001891]
[1642692990399,0.515,43209.0,43208.0,0.18857524]
[1642692990600,0.015,43209.0,43208.0,0.18857524]
[1642692991000,0.015,43209.0,43208.0,0.0001891]
[1642692991400,0.057894,43214.0,43208.0,0.0001891]
[1642692991703,0.418923,43213.0,43208.0,0.0001891]
[1642692992004,0.013,43209.0,43208.0,0.0001891]
[1642692992402,1.213,43209.0,43208.0,0.0001891]
[1642692992605,1.69552703,43209.0,43208.0,0.0001891]
[1642692993004,1.68252703,43209.0,43207.0,0.00020629]
[1642692993203,1.024931,43208.0,43207.0,0.00020629]
[1642692993409,1.13113503,43208.0,43207.0,0.00020629]
[1642692993835,1.14313503,43208.0,43207.0,0.00020629]
[1642692994033,1.24313503,43208.0,43207.0,0.00020629]
[1642692994435,1.37476299,43208.0,43207.0,0.00020629]
[1642692994635,0.24313503,43208.0,43207.0,0.00020629]
[1642692994834,0.21820403,43208.0,43207.0,0.00020629]
[1642692995035,0.10620403,43208.0,43207.0,0.00020629]
[1642692995435,0.5,43208.0,43207.0,0.00020629]
[1642692995635,0.58252703,43208.0,43207.0,0.00020629]
[1642692995834,0.48952703,43208.0,43207.0,0.00020629]
[1642692996235,0.007,43208.0,43207.0,0.00020629]
[1642692997037,0.1060278,43208.0,43207.0,0.00020629]
[1642692997236,0.1060278,43211.0,43207.0,0.00020629]
[1642692997437,0.0426,43217.0,43207.0,0.00020629]
[1642692997438,0.6895678,43217.0,43207.0,0.00020629]
[1642692997692,0.13162098,43217.0,43207.0,0.04056089]
[1642692997890,0.012,43211.0,43207.0,0.04056089]
[1642692998088,0.012,43211.0,43208.0,0.15148396]
[1642692998286,0.012,43211.0,43209.0,0.19188556]
[1642692998485,0.012,43211.0,43210.0,0.35211535]
[1642692998689,0.012,43211.0,43210.0,0.00015472]
[1642692998690,0.007,43211.0,43210.0,0.00015472]
[1642692998990,0.13162098,43219.0,43213.0,0.04312122]
[1642692998991,0.1242298,43219.0,43213.0,0.04312122]
[1642692999187,0.1242298,43219.0,43215.0,0.03432098]
[1642692999387,0.00072597,43222.0,43215.0,0.03432098]
[1642692999388,0.10568963,43221.0,43215.0,0.03432098]
[1642692999588,0.5895678,43225.0,43216.0,0.04555151]
[1642692999890,6.876e-05,43228.0,43221.0,0.22518506]
[1642692999891,0.00072617,43222.0,43221.0,0.22518506]
[1642693000086,0.00072617,43222.0,43221.0,0.04254065]
[1642693000289,0.00072617,43222.0,43221.0,0.10041265]
[1642693000785,0.64758332,43227.0,43221.0,0.10041265]
[1642693000986,0.37631,43226.0,43222.0,0.04224952]
[1642693001186,0.00072627,43224.0,43222.0,0.04224952]
[1642693001435,0.049153,43223.0,43222.0,0.04224952]
[1642693001630,6.876e-05,43223.0,43222.0,0.04224952]
[1642693003830,0.01106876,43223.0,43222.0,0.04224952]
[1642693004432,0.01106876,43223.0,43221.0,0.057872]
[1642693004833,0.01106876,43223.0,43221.0,0.107872]
[1642693005079,6.876e-05,43223.0,43221.0,0.107872]
[1642693005380,6.876e-05,43223.0,43221.0,0.14906407]
[1642693005779,0.00906876,43223.0,43221.0,0.14906407]
[1642693006979,6.876e-05,43223.0,43221.0,0.14906407]
[1642693007580,0.00072627,43224.0,43222.0,0.05786412]
[1642693007779,0.007,43223.0,43222.0,0.05786412]
[1642693008179,0.58931329,43226.0,43221.0,0.15606407]
[1642693008384,0.00072628,43225.0,43221.0,0.15606407]
[1642693008584,0.58931329,43222.0,43221.0,0.007]
[1642693008829,0.13051684,43220.0,43215.0,0.15196663]
[1642693009034,0.13051684,43220.0,43216.0,0.03710821]
[1642693009235,0.13051684,43220.0,43216.0,0.00012033]
[1642693009236,0.96589487,43219.0,43216.0,0.00012033]
[1642693009434,0.96589487,43219.0,43217.0,0.05798414]
[1642693009633,0.37631,43219.0,43217.0,0.31077103]
[1642693009830,0.37831,43219.0,43218.0,8.595e-05]
[1642693011033,0.37131,43219.0,43218.0,8.595e-05]
[1642693011837,0.37131,43219.0,43217.0,0.05438376]
[1642693011838,0.75,43218.0,43217.0,0.05438376]
[1642693012132,0.799153,43218.0,43217.0,0.05438376]
[1642693012584,1.81326357,43218.0,43217.0,0.05438376]
[1642693012983,1.81326884,43218.0,43217.0,0.05438376]
[1642693013184,1.52086614,43218.0,43217.0,0.05438376]
[1642693013784,0.77886614,43218.0,43217.0,0.05438376]
[1642693013984,0.18926014,43218.0,43217.0,0.05438376]
[1642693014390,0.057153,43218.0,43217.0,0.05438376]
[1642693014586,0.18926014,43218.0,43217.0,0.05438376]
[1642693014786,0.052153,43218.0,43217.0,0.05438376]
[1642693014987,0.15859922,43218.0,43217.0,0.05438376]
[1642693015186,0.15059922,43218.0,43217.0,0.05438376]
[1642693015787,0.15759922,43218.0,43217.0,0.05438376]
[1642693015987,0.44756893,43218.0,43217.0,0.05438376]
[1642693016186,0.54756893,43218.0,43217.0,0.05438376]
[1642693016433,1.40889528,43218.0,43217.0,0.05438376]
[1642693016632,0.57967607,43218.0,43217.0,0.05438376]
[1642693017036,0.57267607,43218.0,43217.0,0.05438376]
[1642693017232,0.28270636,43218.0,43217.0,0.05438376]
[1642693017434,0.97057795,43218.0,43217.0,0.05438376]
[1642693017634,0.15059922,43218.0,43217.0,0.05438376]
[1642693017834,0.84747081,43218.0,43217.0,0.10033338]
[1642693018435,0.99892971,43218.0,43217.0,0.10033338]
[1642693018639,0.31757261,43214.0,43210.0,0.00120484]
[1642693018835,0.589633,43217.0,43208.0,0.05]
[1642693019036,0.11544622,43218.0,43215.0,0.00118967]
[1642693019037,0.598633,43218.0,43215.0,0.00118967]
[1642693019236,0.40649958,43216.0,43215.0,0.00118967]
[1642693019438,0.14570558,43216.0,43215.0,0.05906767]
[1642693019640,0.73533858,43216.0,43215.0,0.09209992]
[1642693019835,0.15570558,43216.0,43215.0,0.08709992]
[1642693020084,0.15570558,43216.0,43215.0,0.08091025]
[1642693020281,0.15570558,43216.0,43215.0,0.047878]
[1642693020980,0.74271387,43216.0,43215.0,0.097878]
[1642693021181,0.73271387,43216.0,43215.0,0.097878]
[1642693021385,0.14308087,43216.0,43215.0,0.097878]
[1642693021584,0.73271387,43216.0,43215.0,0.097878]
[1642693021785,0.14308087,43216.0,43215.0,0.097878]
[1642693021988,0.14308087,43216.0,43215.0,0.047878]
[1642693021989,0.74584593,43216.0,43215.0,0.047878]
[1642693022187,0.70488228,43216.0,43215.0,0.047878]
[1642693022387,0.68790657,43218.0,43215.0,0.047878]
[1642693022784,0.376264,43217.0,43215.0,0.047878]
[1642693023185,0.68790657,43217.0,43216.0,0.15191733]
[1642693023385,1.06417057,43217.0,43216.0,0.15191733]
[1642693023588,0.68790657,43217.0,43216.0,0.15191733]
[1642693023837,0.68864211,43219.0,43216.0,0.39237756]
[1642693024035,0.009,43217.0,43216.0,0.39237756]
[1642693025034,0.68790657,43218.0,43215.0,0.047878]
[1642693025334,1.12387057,43217.0,43215.0,0.047878]
[1642693025536,1.12387057,43217.0,43215.0,0.097878]
[1642693025537,0.0597,43217.0,43215.0,0.097878]
[1642693025934,0.0617,43217.0,43215.0,0.097878]
[1642693026136,0.0617,43217.0,43215.0,0.31396979]
[1642693026336,0.0617,43217.0,43216.0,0.1652528]
[1642693027035,0.0597,43217.0,43216.0,0.1652528]
[1642693027438,0.05907,43217.0,43216.0,0.1652528]
[1642693027880,0.06607,43217.0,43216.0,0.1652528]
[1642693028080,0.68864211,43219.0,43216.0,0.1652528]
[1642693028280,0.68864211,43219.0,43216.0,0.79629651]
[1642693028482,0.55692997,43220.0,43218.0,1.2]
[1642693028683,0.08306,43226.0,43220.0,1.15]
[1642693028884,0.001,43229.0,43223.0,0.00128609]
[1642693029081,0.001,43229.0,43224.0,0.418864]
[1642693029281,0.00294125,43234.0,43225.0,1.2]
[1642693029481,0.5610382,43233.0,43226.0,0.2398479]
[1642693029680,0.56129605,43233.0,43226.0,0.24613043]
[1642693029881,0.56177387,43232.0,43230.0,0.00124453]
[1642693030087,0.5610382,43231.0,43229.0,0.0012702]
[1642693030281,0.56126167,43231.0,43227.0,0.0426]
[1642693030480,0.58972899,43228.0,43227.0,0.08579728]
[1642693030681,0.58972899,43229.0,43227.0,0.65636491]
[1642693030881,0.58972899,43230.0,43229.0,0.04089759]
[1642693031080,0.12695499,43230.0,43229.0,1.17240638]
[1642693031337,0.00073565,43230.0,43229.0,0.918864]
[1642693031530,0.00294217,43236.0,43230.0,0.6]
[1642693031731,0.51144796,43235.0,43231.0,0.418864]
[1642693031932,0.51135829,43235.0,43231.0,0.0426]
[1642693032131,0.51114829,43235.0,43231.0,0.0426]
[1642693032330,0.00012033,43235.0,43231.0,0.0426]
[1642693032531,0.78566138,43239.0,43234.0,0.16475027]
[1642693032933,0.12846689,43243.0,43234.0,0.22259427]
[1642693033133,0.12846689,43243.0,43234.0,0.27259427]
[1642693033332,0.00013752,43243.0,43234.0,0.27259427]
[1642693033734,0.00013752,43243.0,43234.0,0.56213602]
[1642693033938,0.00013752,43243.0,43238.0,0.057838]
[1642693033939,0.01713752,43243.0,43238.0,0.057838]
[1642693034135,0.01713752,43243.0,43239.0,0.30073396]
[1642693034335,0.01713752,43243.0,43239.0,0.35073396]
[1642693034734,0.01786754,43243.0,43239.0,0.05]
[1642693035179,0.00086754,43243.0,43239.0,0.05]
[1642693035385,0.00086754,43243.0,43241.0,0.20765156]
[1642693035581,0.51234237,43249.0,43242.0,0.75]
[1642693035582,0.1,43249.0,43242.0,0.75]
[1642693035782,0.1,43249.0,43243.0,0.115665]
[1642693035981,8.595e-05,43248.0,43243.0,0.115665]
[1642693036385,0.035989,43254.0,43246.0,1.2]
[1642693036586,0.12846689,43255.0,43253.0,0.18418271]
[1642693036783,0.3123,43256.0,43255.0,0.00123984]
[1642693036983,0.001,43264.0,43256.0,0.55]
[1642693037180,0.001,43264.0,43258.0,0.00120896]
[1642693037381,0.001,43264.0,43263.0,0.00121177]
[1642693037781,0.10356994,43264.0,43263.0,0.37644888]
[1642693037983,0.10356994,43264.0,43263.0,0.42844888]
[1642693038180,0.001,43264.0,43263.0,0.428264]
[1642693038382,0.10356994,43264.0,43263.0,0.428264]
[1642693038582,0.001,43265.0,43263.0,0.428264]
[1642693038832,0.78602188,43271.0,43264.0,1.2]
[1642693038833,0.001,43271.0,43264.0,1.2]
[1642693039032,0.78502188,43273.0,43265.0,0.468864]
[1642693039232,0.001,43274.0,43265.0,0.468864]
[1642693039233,0.58864675,43267.0,43265.0,0.468864]
[1642693039430,0.78502188,43276.0,43273.0,0.65086467]
[1642693039630,0.00280745,43276.0,43274.0,0.35375043]
[1642693039831,0.00280745,43276.0,43275.0,0.97181241]
[1642693040133,0.001,43284.0,43276.0,0.057786]
[1642693040134,0.78502188,43283.0,43276.0,0.057786]
[1642693040334,0.001,43284.0,43276.0,0.05516589]
[1642693040635,0.001,43284.0,43281.0,0.19587221]
[1642693040636,0.00079,43284.0,43281.0,0.19587221]
[1642693040837,0.00079,43284.0,43281.0,0.24587221]
[1642693040841,0.00058,43284.0,43281.0,0.24587221]
[1642693041033,0.41979,43288.0,43281.0,0.30366221]
[1642693041237,0.88492188,43290.0,43281.0,0.30366221]
[1642693041238,0.0999,43290.0,43281.0,0.30366221]
[1642693041433,0.00068761,43287.0,43284.0,0.03366664]
[1642693041631,0.00068761,43287.0,43285.0,0.03745092]
[1642693041831,0.00046042,43286.0,43282.0,0.0426]
[1642693042033,0.00025042,43286.0,43284.0,0.004]
[1642693042230,0.00023323,43285.0,43284.0,0.004]
[1642693042433,2.323e-05,43285.0,43284.0,0.004]
[1642693042692,0.09971323,43290.0,43284.0,0.004]
[1642693042886,0.24427834,43289.0,43284.0,0.0044372]
[1642693043296,0.24397602,43289.0,43284.0,0.0004372]
[1642693043487,0.24376602,43289.0,43284.0,0.0004372]
[1642693043788,0.375677,43288.0,43284.0,0.0004372]
[1642693043991,0.24355602,43289.0,43284.0,0.0004372]
[1642693044189,0.30135302,43289.0,43284.0,0.0004372]
[1642693044391,0.375626,43288.0,43284.0,0.0004372]
[1642693044590,0.375626,43288.0,43283.0,0.49601201]
[1642693044591,0.370626,43288.0,43283.0,0.49601201]
[1642693044786,0.30203377,43289.0,43283.0,0.49601201]
[1642693045187,6.877e-05,43288.0,43283.0,0.49601201]
[1642693045589,0.59279969,43289.0,43280.0,0.82263671]
[1642693045792,0.59279969,43289.0,43280.0,0.70705471]
[1642693045988,0.59279969,43289.0,43284.0,6.877e-05]
[1642693046193,0.375838,43288.0,43284.0,6.877e-05]
[1642693046437,1.2,43287.0,43280.0,0.47453639]
[1642693046636,0.057802,43285.0,43280.0,0.47453639]
[1642693046837,0.23566599,43281.0,43280.0,0.47453639]
[1642693047040,0.55144785,43281.0,43280.0,0.47453639]
[1642693047237,0.92728585,43281.0,43280.0,0.47460515]
[1642693047844,1.20006,43280.0,43277.0,0.00074055]
[1642693048046,1.20006,43280.0,43268.0,0.05]
[1642693048047,0.375838,43278.0,43268.0,0.05]
[1642693048247,0.00129403,43270.0,43262.0,0.115636]
[1642693048444,0.00129403,43270.0,43269.0,0.00018909]
[1642693048643,1.57713203,43270.0,43269.0,0.00018909]
[1642693049043,1.63495603,43270.0,43269.0,0.00018909]
[1642693049243,1.87150836,43270.0,43269.0,0.00018909]
[1642693049944,1.87950836,43270.0,43269.0,0.00018909]
[1642693050189,1.87950836,43270.0,43264.0,0.16752219]
[1642693050190,1.92549836,43270.0,43264.0,0.16752219]
[1642693050390,0.32448662,43269.0,43263.0,0.00029223]
[1642693050592,0.375838,43268.0,43265.0,0.00025785]
[1642693050789,0.375838,43268.0,43258.0,0.115645]
[1642693050790,0.375838,43268.0,43263.0,0.00029223]
[1642693050997,0.06569918,43270.0,43262.0,0.057825]
[1642693051190,0.1,43276.0,43263.0,0.31855375]
[1642693051392,0.09979,43276.0,43263.0,0.31855375]
[1642693051600,1.19985,43280.0,43264.0,0.00027504]
[1642693051792,0.22966332,43273.0,43264.0,0.00027504]
[1642693051991,0.22966332,43273.0,43269.0,0.20170301]
[1642693052191,0.375838,43272.0,43269.0,0.23619287]
[1642693052394,0.006,43276.0,43270.0,0.0001719]
[1642693052590,0.375838,43275.0,43271.0,0.04393386]
[1642693052791,0.375838,43275.0,43272.0,0.04027915]
[1642693052994,0.375838,43275.0,43272.0,0.03667897]
[1642693053190,0.375838,43275.0,43273.0,0.00012033]
[1642693053860,0.057817,43273.0,43270.0,0.0001719]
[1642693054057,0.104017,43273.0,43272.0,0.00132622]
[1642693054259,0.82349311,43273.0,43272.0,0.0011887]
[1642693054461,0.82349311,43273.0,43272.0,0.00132622]
[1642693054659,1.87349311,43273.0,43272.0,0.00132622]
[1642693055056,1.87349311,43273.0,43272.0,0.00013752]
[1642693055457,1.87349311,43273.0,43270.0,0.00118873]
[1642693055657,1.575838,43272.0,43271.0,0.00015471]
[1642693056059,1.675838,43272.0,43271.0,0.00015471]
[1642693056262,0.17770654,43267.0,43259.0,0.1911711]
[1642693056461,0.17770654,43267.0,43257.0,0.05]
[1642693056462,0.24701589,43259.0,43257.0,0.05]
[1642693056860,0.29931738,43259.0,43256.0,0.115653]
[1642693057058,0.115665,43264.0,43256.0,0.115653]
[1642693057059,0.33547445,43263.0,43256.0,0.115653]
[1642693057258,0.33547445,43263.0,43257.0,0.00024066]
[1642693057460,0.057831,43262.0,43257.0,0.00024066]
[1642693057888,0.375838,43261.0,43256.0,0.00025785]
[1642693058087,0.115681,43259.0,43256.0,0.00025785]
[1642693058688,0.31504087,43259.0,43256.0,0.00025785]
[1642693059188,0.375838,43258.0,43256.0,0.00025785]
[1642693059390,1.5078495,43257.0,43256.0,0.00025785]
[1642693059589,1.8836875,43257.0,43256.0,0.00025785]
[1642693059789,1.9415275,43257.0,43256.0,0.00025785]
[1642693059989,1.9495275,43257.0,43256.0,0.00025785]
[1642693060188,1.9495275,43257.0,43255.0,0.00027504]
[1642693060388,1.175838,43256.0,43255.0,0.00027504]
[1642693061635,0.375838,43256.0,43255.0,0.00027504]
[1642693061828,0.05784,43257.0,43255.0,0.00027504]
[1642693062028,0.007,43256.0,43255.0,0.00027504]
[1642693062233,0.007,43256.0,43255.0,0.11593204]
[1642693062429,0.007,43256.0,43255.0,0.115657]
[1642693062629,0.007,43256.0,43255.0,0.11593204]
[1642693062828,0.007,43256.0,43255.0,0.31457665]
[1642693063228,0.00126965,43260.0,43255.0,0.31457665]
[1642693063629,0.00126965,43260.0,43256.0,0.00025785]
[1642693064032,0.00926965,43260.0,43256.0,0.00025785]
[1642693064431,0.115684,43258.0,43256.0,0.00025785]
[1642693064631,1.575838,43257.0,43254.0,0.00029223]
[1642693064831,1.575838,43257.0,43256.0,0.00118897]
[1642693065290,1.5771326,43257.0,43256.0,0.00144682]
[1642693065487,1.5771326,43257.0,43256.0,0.00118897]
[1642693065687,1.5771326,43257.0,43256.0,0.00025785]
[1642693066089,1.5771326,43257.0,43254.0,0.001189]
[1642693066090,1.13683442,43255.0,43254.0,0.001189]
[1642693066286,1.51267242,43255.0,43254.0,0.001189]
[1642693066888,0.375838,43254.0,43250.0,0.054028]
[1642693067089,0.18683442,43255.0,43252.0,0.00118903]
[1642693067489,0.607843,43253.0,43252.0,0.00118903]
[1642693067689,0.983681,43253.0,43252.0,0.00118903]
[1642693067988,0.991681,43253.0,43252.0,0.00151564]
[1642693068187,0.991681,43253.0,43252.0,0.00032661]
[1642693068387,0.441681,43253.0,43252.0,0.00032661]
[1642693068588,0.441681,43253.0,43250.0,0.00118907]
[1642693068836,0.065843,43253.0,43250.0,0.00118907]
[1642693069236,0.01657252,43253.0,43250.0,0.00118907]
[1642693069432,0.00857252,43253.0,43249.0,0.00037818]
[1642693069633,0.00857252,43253.0,43249.0,0.00156727]
[1642693070034,0.02357252,43253.0,43250.0,0.00036099]
[1642693070734,0.32368981,43253.0,43250.0,0.00036099]
[1642693070935,0.32368981,43253.0,43249.0,0.00156727]
[1642693070936,0.00120143,43251.0,43249.0,0.00156727]
[1642693071138,0.00120143,43251.0,43250.0,0.00036099]
[1642693071336,1.57703943,43251.0,43250.0,0.00036099]
[1642693071538,1.67703943,43251.0,43250.0,0.00036099]
[1642693071938,0.47703943,43251.0,43250.0,0.00036099]
[1642693072238,0.38403943,43251.0,43249.0,0.00037818]
[1642693072687,0.7797873,43250.0,43249.0,0.00037818]
[1642693072883,1.1556253,43250.0,43249.0,0.00037818]
[1642693073083,0.6056253,43250.0,43249.0,0.00037818]
[1642693073283,0.6056253,43250.0,43248.0,0.00118911]
[1642693073284,0.6634703,43250.0,43248.0,0.00118911]
[1642693073582,0.6634703,43250.0,43249.0,0.00037818]
[1642693073583,0.057845,43250.0,43249.0,0.00037818]
[1642693073981,0.065845,43250.0,43249.0,0.00037818]
[1642693074483,0.665845,43250.0,43249.0,0.00037818]
[1642693074681,1.28967826,43250.0,43248.0,0.00039537]
[1642693074880,0.375838,43249.0,43248.0,0.00039537]
[1642693075081,0.31384026,43250.0,43248.0,0.00039537]
[1642693075284,0.30584026,43250.0,43248.0,0.00039537]
[1642693075482,0.057845,43250.0,43248.0,0.178615]
[1642693075682,0.06991831,43250.0,43246.0,0.00118914]
[1642693075886,0.06991831,43250.0,43249.0,0.00037818]
[1642693076085,0.08191831,43250.0,43247.0,0.00041256]
[1642693076536,0.22569955,43249.0,43247.0,0.00041256]
[1642693076940,0.22569955,43249.0,43246.0,0.00118914]
[1642693077138,0.22569955,43249.0,43247.0,0.00041256]
[1642693077736,0.60049267,43248.0,43247.0,0.00041256]
[1642693077939,0.65834367,43248.0,43247.0,0.00041256]
[1642693078237,0.733689,43248.0,43247.0,0.00041256]
[1642693078637,1.03682525,43248.0,43247.0,0.00041256]
[1642693078837,0.733689,43248.0,43247.0,0.00041256]
[1642693079443,0.733689,43248.0,43245.0,0.00118915]
[1642693079444,0.375838,43248.0,43245.0,0.00118915]
[1642693079640,0.22569955,43249.0,43246.0,0.00042975]
[1642693080088,0.32105963,43250.0,43246.0,0.00042975]
[1642693080089,0.011,43248.0,43246.0,0.00042975]
[1642693080490,0.011,43248.0,43245.0,0.00118915]
[1642693080691,0.011,43248.0,43246.0,0.00042975]
[1642693081692,0.011,43248.0,43246.0,0.31716566]
[1642693081892,0.011,43248.0,43247.0,1.075838]
[1642693082097,0.011,43248.0,43247.0,1.07625056]
[1642693082098,0.03,43248.0,43247.0,1.07625056]
[1642693082290,0.03,43248.0,43247.0,0.37625056]
[1642693082491,0.019,43248.0,43247.0,0.37625056]
[1642693082891,0.019,43248.0,43247.0,0.00041256]
[1642693083292,0.057845,43250.0,43246.0,0.00042975]
[1642693083693,0.22214489,43248.0,43246.0,0.00042975]
[1642693083943,0.00126782,43247.0,43246.0,0.00161889]
[1642693084136,0.00126782,43247.0,43246.0,0.00118914]
[1642693084340,0.00126782,43247.0,43246.0,0.00161889]
[1642693085036,0.00126782,43247.0,43246.0,0.00042975]
[1642693085439,0.22214489,43248.0,43244.0,0.00118917]
[1642693085637,0.22214489,43248.0,43245.0,0.00044694]
[1642693086037,0.23214489,43248.0,43245.0,0.00044694]
[1642693086636,0.23214489,43248.0,43244.0,0.00118917]
[1642693086837,0.23214489,43248.0,43245.0,0.00044694]
[1642693087343,0.22214489,43248.0,43245.0,0.00044694]
[1642693087787,0.22214489,43248.0,43244.0,0.00118917]
[1642693087990,0.23414489,43248.0,43245.0,0.00044694]
[1642693088591,0.28260443,43247.0,43245.0,0.00044694]
[1642693088989,0.28260443,43247.0,43244.0,0.00118917]
[1642693089188,0.28260443,43247.0,43245.0,0.00044694]
[1642693089390,0.28260443,43247.0,43246.0,0.00043315]
[1642693089790,0.28260443,43247.0,43246.0,0.0008629]
[1642693089993,0.29160443,43247.0,43246.0,0.0008629]
[1642693090389,0.46685,43247.0,43246.0,0.0008629]
[1642693090590,0.06685,43247.0,43246.0,0.0008629]
[1642693090991,0.009,43247.0,43246.0,0.0008629]
[1642693091191,0.115694,43250.0,43246.0,0.0008629]
[1642693091640,0.115694,43250.0,43247.0,0.00041256]
[1642693091940,0.20950307,43249.0,43247.0,0.00041256]
[1642693092544,0.51448492,43249.0,43247.0,0.00041256]
[1642693092746,0.51448492,43249.0,43247.0,0.00034598]
[1642693092747,1.99696461,43248.0,43247.0,0.00034598]
[1642693092946,1.99696461,43248.0,43246.0,0.00162229]
[1642693092947,1.2,43247.0,43246.0,0.00134827]
[1642693093143,0.057864,43245.0,43239.0,0.0011]
[1642693093345,1.633702,43246.0,43231.0,0.05]
[1642693093346,0.57043503,43241.0,43231.0,0.05]
[1642693093547,0.57043503,43241.0,43224.0,0.42]
[1642693093548,0.21474453,43233.0,43224.0,0.42]
[1642693093745,0.2051961,43225.0,43224.0,0.62091742]
[1642693094143,0.21474453,43233.0,43224.0,0.62091742]
[1642693094144,0.21974453,43233.0,43224.0,0.62091742]
[1642693094344,0.115756,43231.0,43224.0,0.42]
[1642693094543,0.115756,43231.0,43225.0,0.00037818]
[1642693094743,0.001247,43226.0,43225.0,0.00037818]
[1642693094945,0.001247,43226.0,43220.0,0.00046413]
[1642693095203,0.20135937,43226.0,43220.0,0.00046413]
[1642693095398,0.25923837,43226.0,43220.0,0.00046413]
[1642693096198,0.57733268,43226.0,43220.0,0.00046413]
[1642693096600,0.57047254,43226.0,43220.0,0.00046413]
[1642693097205,0.51259354,43226.0,43221.0,0.00118957]
[1642693097399,0.30664196,43225.0,43221.0,0.00118957]
[1642693097601,0.30664196,43225.0,43222.0,0.00042975]
[1642693097807,0.30572753,43225.0,43215.0,0.42]